[Event "*** Titled Tuesday Blitz"]
[Site "Chess.com"]
[Date "2020.05.19"]
[Round "4"]
[White "pavelalexandru07"]
[Black "PauloFanha"]
[Result "1/2-1/2"]
[WhiteElo "2218"]
[BlackElo "1957"]
[TimeControl "180+1"]
[EndTime "12:40:34 PDT"]
[Termination "Game drawn by repetition"]

1. e4 {[%clk 0:03:00.9]} 1... d5 {[%clk 0:02:57.2]} 2. exd5 {[%clk 0:03:00.5]}
2... Qxd5 {[%clk 0:02:57.4]} 3. Nc3 {[%clk 0:03:00.5]} 3... Qd6 {[%clk
0:02:57.8]} 4. Nf3 {[%clk 0:02:59.3]} 4... Nf6 {[%clk 0:02:56.8]} 5. d4 {[%clk
0:02:58.2]} 5... c6 {[%clk 0:02:57]} 6. Bc4 {[%clk 0:02:56.1]} 6... Bg4 {[%clk
0:02:56.2]} 7. Be3 {[%clk 0:02:51.7]} 7... e6 {[%clk 0:02:53.7]} 8. O-O {[%clk
0:02:50.3]} 8... Qc7 {[%clk 0:02:52.4]} 9. h3 {[%clk 0:02:45.7]} 9... Bxf3
{[%clk 0:02:50.1]} 10. Qxf3 {[%clk 0:02:45.1]} 10... Nbd7 {[%clk 0:02:49]} 11.
Rfe1 {[%clk 0:02:38.4]} 11... Bd6 {[%clk 0:02:44.5]} 12. Rad1 {[%clk 0:02:36]}
12... O-O-O {[%clk 0:02:43]} 13. a3 {[%clk 0:02:33.5]} 13... h6 {[%clk
0:02:41.4]} 14. b4 {[%clk 0:02:30.5]} 14... g5 {[%clk 0:02:39.1]} 15. b5 {[%clk
0:02:26.4]} 15... Nb6 {[%clk 0:02:32.9]} 16. Bb3 {[%clk 0:02:17.1]} 16... Nfd5
{[%clk 0:02:29.8]} 17. Ne4 {[%clk 0:02:10.2]} 17... Nxe3 {[%clk 0:02:21.9]} 18.
Rxe3 {[%clk 0:02:08.5]} 18... cxb5 {[%clk 0:02:14.3]} 19. a4 {[%clk 0:02:03.8]}
19... b4 {[%clk 0:02:08.5]} 20. c3 {[%clk 0:01:46.4]} 20... Nd5 {[%clk
0:02:05.7]} 21. Bxd5 {[%clk 0:01:18.7]} 21... exd5 {[%clk 0:02:01.5]} 22. Nf6
{[%clk 0:01:18.4]} 22... Kb8 {[%clk 0:01:51.2]} 23. Nxd5 {[%clk 0:01:14.3]}
23... Qc6 {[%clk 0:01:38.4]} 24. cxb4 {[%clk 0:01:08.8]} 24... Bh2+ {[%clk
0:01:24.3]} 25. Kxh2 {[%clk 0:01:07.1]} 25... Qxd5 {[%clk 0:01:22.6]} 26. Qxd5
{[%clk 0:01:03.5]} 26... Rxd5 {[%clk 0:01:22.7]} 27. Re7 {[%clk 0:00:46.4]}
27... Rhd8 {[%clk 0:01:18.2]} 28. Rxf7 {[%clk 0:00:37.8]} 28... Rxd4 {[%clk
0:01:17.4]} 29. Rxd4 {[%clk 0:00:36]} 29... Rxd4 {[%clk 0:01:17.6]} 30. Rf6
{[%clk 0:00:34.8]} 30... Rxb4 {[%clk 0:01:16.3]} 31. Rg6 {[%clk 0:00:34.8]}
31... Rxa4 {[%clk 0:01:14.3]} 32. Rxh6 {[%clk 0:00:34.9]} 32... b5 {[%clk
0:01:09.9]} 33. Rg6 {[%clk 0:00:27.3]} 33... b4 {[%clk 0:01:08.6]} 34. Rxg5
{[%clk 0:00:27.3]} 34... a6 {[%clk 0:01:06]} 35. Rg3 {[%clk 0:00:25.5]} 35...
Ra3 {[%clk 0:01:04.8]} 36. Rg4 {[%clk 0:00:25.4]} 36... b3 {[%clk 0:01:00.8]}
37. Rb4+ {[%clk 0:00:24.6]} 37... Kc7 {[%clk 0:00:59.4]} 38. h4 {[%clk
0:00:24.8]} 38... a5 {[%clk 0:00:57]} 39. Rb5 {[%clk 0:00:24.8]} 39... Kc6
{[%clk 0:00:55.7]} 40. Rb8 {[%clk 0:00:24.8]} 40... Kc7 {[%clk 0:00:55.4]} 41.
Rb5 {[%clk 0:00:24.5]} 41... Kc6 {[%clk 0:00:55.1]} 42. Rb8 {[%clk 0:00:12.8]}
42... Kc7 {[%clk 0:00:53.8]} 43. Rb5 {[%clk 0:00:04.3]} 1/2-1/2

[Event "*** Titled Tuesday Blitz"]
[Site "Chess.com"]
[Date "2020.05.19"]
[Round "4"]
[White "Mykola-Bortnyk"]
[Black "Supernotar"]
[Result "1-0"]
[WhiteElo "2890"]
[BlackElo "2682"]
[TimeControl "180+1"]
[EndTime "12:40:35 PDT"]
[Termination "Mykola-Bortnyk won by checkmate"]

1. e4 {[%clk 0:02:58]} 1... c6 {[%clk 0:03:00.1]} 2. Qe2 {[%clk 0:02:52.6]} 2...
g6 {[%clk 0:02:51.7]} 3. Nc3 {[%clk 0:02:47.7]} 3... d5 {[%clk 0:02:50.1]} 4. f4
{[%clk 0:02:43.8]} 4... dxe4 {[%clk 0:02:44.7]} 5. Nxe4 {[%clk 0:02:43.1]} 5...
Bg7 {[%clk 0:02:45.2]} 6. Nf3 {[%clk 0:02:43.1]} 6... Nf6 {[%clk 0:02:44.7]} 7.
d3 {[%clk 0:02:40.6]} 7... O-O {[%clk 0:02:44.5]} 8. g3 {[%clk 0:02:40.8]} 8...
b6 {[%clk 0:02:43.7]} 9. Bg2 {[%clk 0:02:40.8]} 9... Bb7 {[%clk 0:02:43.8]} 10.
Nf2 {[%clk 0:02:38.4]} 10... c5 {[%clk 0:02:43.1]} 11. O-O {[%clk 0:02:38.6]}
11... Nc6 {[%clk 0:02:42.4]} 12. Re1 {[%clk 0:02:31.9]} 12... e6 {[%clk
0:02:37.4]} 13. c3 {[%clk 0:02:32]} 13... Qc7 {[%clk 0:02:36.2]} 14. Bd2 {[%clk
0:02:21.1]} 14... Rad8 {[%clk 0:02:35.6]} 15. Rad1 {[%clk 0:02:21.5]} 15... Rd7
{[%clk 0:02:32.6]} 16. c4 {[%clk 0:02:14.1]} 16... Rfd8 {[%clk 0:02:29.6]} 17.
Bc3 {[%clk 0:02:14.5]} 17... Ne8 {[%clk 0:02:28.7]} 18. h3 {[%clk 0:02:06.3]}
18... Nd4 {[%clk 0:02:21.9]} 19. Nxd4 {[%clk 0:02:03.3]} 19... cxd4 {[%clk
0:02:15.7]} 20. Bb4 {[%clk 0:02:00.4]} 20... Bxg2 {[%clk 0:02:14.5]} 21. Kxg2
{[%clk 0:02:01.3]} 21... a5 {[%clk 0:02:13]} 22. Ba3 {[%clk 0:02:00.5]} 22...
Nd6 {[%clk 0:02:09.8]} 23. Bxd6 {[%clk 0:01:58.8]} 23... Qxd6 {[%clk 0:02:07.3]}
24. Qf3 {[%clk 0:01:57.6]} 24... Qb4 {[%clk 0:02:03.4]} 25. Re2 {[%clk 0:01:55]}
25... b5 {[%clk 0:02:02.8]} 26. Rc1 {[%clk 0:01:51.7]} 26... a4 {[%clk
0:01:56.5]} 27. Qc6 {[%clk 0:01:44.5]} 27... bxc4 {[%clk 0:01:14.2]} 28. Rxc4
{[%clk 0:01:45.4]} 28... Qb8 {[%clk 0:01:13.6]} 29. Rxa4 {[%clk 0:01:33.9]}
29... Rc7 {[%clk 0:01:13.1]} 30. Qf3 {[%clk 0:01:33.5]} 30... Rc1 {[%clk
0:01:10.9]} 31. Rc4 {[%clk 0:01:28.8]} 31... Rc8 {[%clk 0:01:03]} 32. b3 {[%clk
0:01:27.8]} 32... h6 {[%clk 0:00:57.9]} 33. h4 {[%clk 0:01:21.1]} 33... Qb5
{[%clk 0:00:41.6]} 34. h5 {[%clk 0:01:18.7]} 34... gxh5 {[%clk 0:00:39.9]} 35.
Ne4 {[%clk 0:01:15.6]} 35... R8xc4 {[%clk 0:00:31.8]} 36. dxc4 {[%clk
0:01:12.6]} 36... Qf5 {[%clk 0:00:31]} 37. Rd2 {[%clk 0:01:02]} 37... e5 {[%clk
0:00:26.3]} 38. a4 {[%clk 0:00:47.7]} 38... h4 {[%clk 0:00:25.9]} 39. g4 {[%clk
0:00:45.5]} 39... Qd7 {[%clk 0:00:10.6]} 40. f5 {[%clk 0:00:44.9]} 40... Qe7
{[%clk 0:00:06.2]} 41. f6 {[%clk 0:00:43]} 41... Qa3 {[%clk 0:00:05.1]} 42. fxg7
{[%clk 0:00:43.2]} 42... Qa1 {[%clk 0:00:04.7]} 43. Kh2 {[%clk 0:00:41.1]} 43...
h3 {[%clk 0:00:03.8]} 44. g5 {[%clk 0:00:39.6]} 44... hxg5 {[%clk 0:00:01.7]}
45. Nxg5 {[%clk 0:00:38.8]} 45... d3 {[%clk 0:00:01.8]} 46. Qxf7# {[%clk
0:00:39]} 1-0

[Event "*** Titled Tuesday Blitz"]
[Site "Chess.com"]
[Date "2020.05.19"]
[Round "4"]
[White "Karina_Ivanova"]
[Black "VolodymyrMolyboha"]
[Result "0-1"]
[WhiteElo "2205"]
[BlackElo "2413"]
[TimeControl "180+1"]
[EndTime "12:40:35 PDT"]
[Termination "VolodymyrMolyboha won by resignation"]

1. Nf3 {[%clk 0:03:00.4]} 1... g6 {[%clk 0:02:59.3]} 2. g3 {[%clk 0:03:00.9]}
2... Bg7 {[%clk 0:02:59.5]} 3. Bg2 {[%clk 0:03:01.3]} 3... Nf6 {[%clk
0:03:00.2]} 4. O-O {[%clk 0:03:01.9]} 4... O-O {[%clk 0:03:00.4]} 5. d4 {[%clk
0:03:01.8]} 5... d6 {[%clk 0:03:00.4]} 6. c4 {[%clk 0:03:01.8]} 6... Nbd7 {[%clk
0:03:00.5]} 7. Nc3 {[%clk 0:03:01.5]} 7... e5 {[%clk 0:03:00.8]} 8. e4 {[%clk
0:03:00.9]} 8... c6 {[%clk 0:03:00]} 9. h3 {[%clk 0:02:59.3]} 9... Re8 {[%clk
0:02:59.8]} 10. Be3 {[%clk 0:02:58]} 10... exd4 {[%clk 0:03:00]} 11. Nxd4 {[%clk
0:02:58]} 11... Nc5 {[%clk 0:03:00.6]} 12. Qc2 {[%clk 0:02:57.4]} 12... a5
{[%clk 0:03:00.8]} 13. Rad1 {[%clk 0:02:54.9]} 13... Nfd7 {[%clk 0:03:00.9]} 14.
Rfe1 {[%clk 0:02:52.9]} 14... a4 {[%clk 0:03:00.6]} 15. b4 {[%clk 0:02:50]}
15... axb3 {[%clk 0:03:00.3]} 16. axb3 {[%clk 0:02:49.5]} 16... Qb6 {[%clk
0:03:00.2]} 17. Nce2 {[%clk 0:02:39.8]} 17... Ra3 {[%clk 0:02:45.7]} 18. Qb2
{[%clk 0:02:21.6]} 18... Qa7 {[%clk 0:02:37.1]} 19. Qc2 {[%clk 0:02:02.3]} 19...
Ra2 {[%clk 0:02:30.1]} 20. Qb1 {[%clk 0:02:01.5]} 20... Ne5 {[%clk 0:02:19.3]}
21. b4 {[%clk 0:01:47.7]} 21... Ncd3 {[%clk 0:02:04.5]} 22. Rxd3 {[%clk
0:01:45.8]} 22... Nxd3 {[%clk 0:02:04.7]} 23. Qxd3 {[%clk 0:01:42.6]} 23... Qa4
{[%clk 0:02:00]} 24. b5 {[%clk 0:01:27.7]} 24... Ra3 {[%clk 0:01:56.9]} 25. Qc2
{[%clk 0:01:18.2]} 25... c5 {[%clk 0:01:49.7]} 26. Qxa4 {[%clk 0:01:07.8]} 26...
Rxa4 {[%clk 0:01:49.7]} 27. Nb3 {[%clk 0:00:55.4]} 27... Rxc4 {[%clk 0:01:49.3]}
28. Nd2 {[%clk 0:00:46.4]} 28... Rb4 {[%clk 0:01:47.3]} 29. Rb1 {[%clk
0:00:46.3]} 29... Rxb1+ {[%clk 0:01:44.4]} 30. Nxb1 {[%clk 0:00:45.3]} 30... Bd7
{[%clk 0:01:44.7]} 31. Nbc3 {[%clk 0:00:39.2]} 31... Ra8 {[%clk 0:01:44.5]} 32.
Bf1 {[%clk 0:00:32.6]} 32... Ra1 {[%clk 0:01:42.4]} 33. Kg2 {[%clk 0:00:30.4]}
33... f5 {[%clk 0:01:30.3]} 34. exf5 {[%clk 0:00:26.2]} 34... Bxf5 {[%clk
0:01:30.4]} 35. b6 {[%clk 0:00:15.4]} 35... Ra6 {[%clk 0:01:11.7]} 36. Nf4
{[%clk 0:00:08.1]} 36... Rxb6 {[%clk 0:01:06.9]} 37. Bc4+ {[%clk 0:00:07.9]}
37... Kf8 {[%clk 0:01:01.4]} 38. Ncd5 {[%clk 0:00:08.4]} 38... Rb2 {[%clk
0:00:57.9]} 39. Nc7 {[%clk 0:00:08]} 39... Be5 {[%clk 0:00:50.4]} 40. Nfe6+
{[%clk 0:00:07.8]} 40... Ke7 {[%clk 0:00:44.4]} 41. Bg5+ {[%clk 0:00:07.5]}
41... Kd7 {[%clk 0:00:42.8]} 42. Bb5+ {[%clk 0:00:04.8]} 42... Rxb5 {[%clk
0:00:40.5]} 43. Nxb5 {[%clk 0:00:03.6]} 43... Bxe6 {[%clk 0:00:39.9]} 0-1

[Event "*** Titled Tuesday Blitz"]
[Site "Chess.com"]
[Date "2020.05.19"]
[Round "4"]
[White "louis198"]
[Black "temus_galaktionov"]
[Result "0-1"]
[WhiteElo "2493"]
[BlackElo "2704"]
[TimeControl "180+1"]
[EndTime "12:40:36 PDT"]
[Termination "temus_galaktionov won by resignation"]

1. d4 {[%clk 0:03:00.9]} 1... c6 {[%clk 0:03:00.9]} 2. Bf4 {[%clk 0:03:00.1]}
2... g6 {[%clk 0:03:01.8]} 3. e3 {[%clk 0:02:58.5]} 3... Bg7 {[%clk 0:03:01.7]}
4. Nf3 {[%clk 0:02:58.7]} 4... Nf6 {[%clk 0:03:01.9]} 5. h3 {[%clk 0:02:58.7]}
5... d6 {[%clk 0:03:01.6]} 6. a4 {[%clk 0:02:58.2]} 6... Qb6 {[%clk 0:02:58.1]}
7. Qc1 {[%clk 0:02:29.8]} 7... a5 {[%clk 0:02:57.2]} 8. Bc4 {[%clk 0:02:27.6]}
8... O-O {[%clk 0:02:55.9]} 9. O-O {[%clk 0:02:27.3]} 9... Bf5 {[%clk
0:02:51.2]} 10. Ra3 {[%clk 0:02:26.7]} 10... Nbd7 {[%clk 0:02:22]} 11. Ba2
{[%clk 0:02:22.8]} 11... c5 {[%clk 0:02:13.4]} 12. Nc3 {[%clk 0:02:14]} 12...
Rfc8 {[%clk 0:02:03.7]} 13. Rb3 {[%clk 0:02:07]} 13... Qa6 {[%clk 0:01:59]} 14.
Rb5 {[%clk 0:02:05.3]} 14... c4 {[%clk 0:01:30.6]} 15. Nd2 {[%clk 0:01:57.1]}
15... Nb6 {[%clk 0:01:30.1]} 16. Rxb6 {[%clk 0:01:25.1]} 16... Qxb6 {[%clk
0:01:29.1]} 17. Nxc4 {[%clk 0:01:26]} 17... Qb4 {[%clk 0:01:14.1]} 18. Na3
{[%clk 0:01:12.4]} 18... Be6 {[%clk 0:01:13.1]} 19. Bxe6 {[%clk 0:01:08.9]}
19... fxe6 {[%clk 0:01:14]} 20. Bh2 {[%clk 0:01:05.3]} 20... Nd5 {[%clk
0:01:12.7]} 21. Nxd5 {[%clk 0:01:03.1]} 21... exd5 {[%clk 0:01:13.6]} 22. b3
{[%clk 0:00:53.4]} 22... Rc6 {[%clk 0:01:09.5]} 23. Qb2 {[%clk 0:00:51.8]} 23...
Rac8 {[%clk 0:01:07.9]} 24. Bg3 {[%clk 0:00:42.4]} 24... Qd2 {[%clk 0:01:02.9]}
25. Qb1 {[%clk 0:00:36.6]} 25... Bf6 {[%clk 0:01:01.1]} 26. c4 {[%clk
0:00:35.6]} 26... Qb4 {[%clk 0:00:46.9]} 27. cxd5 {[%clk 0:00:34.7]} 27... Rc3
{[%clk 0:00:44.3]} 28. Nb5 {[%clk 0:00:34.9]} 28... Rxb3 {[%clk 0:00:42.4]} 29.
Qe4 {[%clk 0:00:35.5]} 29... Kg7 {[%clk 0:00:29.2]} 30. Qe6 {[%clk 0:00:29.7]}
30... Rf8 {[%clk 0:00:26.5]} 31. Qd7 {[%clk 0:00:26.8]} 31... Qxa4 {[%clk
0:00:21.2]} 32. Bf4 {[%clk 0:00:22.8]} 32... Qxb5 {[%clk 0:00:20.4]} 33. Qg4
{[%clk 0:00:23]} 33... Rb1 {[%clk 0:00:20]} 34. Rxb1 {[%clk 0:00:22.2]} 34...
Qxb1+ {[%clk 0:00:20.9]} 35. Kh2 {[%clk 0:00:22.8]} 35... Qf5 {[%clk 0:00:21.1]}
36. Qf3 {[%clk 0:00:23]} 36... g5 {[%clk 0:00:20.3]} 37. g4 {[%clk 0:00:23.4]}
37... Qd3 {[%clk 0:00:18.2]} 38. Bg3 {[%clk 0:00:23.1]} 38... Be5 {[%clk
0:00:14.9]} 39. Qg2 {[%clk 0:00:23]} 39... Bxg3+ {[%clk 0:00:14.5]} 40. Qxg3
{[%clk 0:00:23.9]} 40... Qe4 {[%clk 0:00:13.1]} 41. Qg1 {[%clk 0:00:22.2]} 41...
Qf3 {[%clk 0:00:12.5]} 0-1

[Event "*** Titled Tuesday Blitz"]
[Site "Chess.com"]
[Date "2020.05.19"]
[Round "4"]
[White "DACF2905"]
[Black "SuperCheese"]
[Result "0-1"]
[WhiteElo "2332"]
[BlackElo "2566"]
[TimeControl "180+1"]
[EndTime "12:40:36 PDT"]
[Termination "SuperCheese won by resignation"]

1. c4 {[%clk 0:03:00.9]} 1... Nf6 {[%clk 0:02:46.1]} 2. Nc3 {[%clk 0:02:59.6]}
2... e6 {[%clk 0:02:46.2]} 3. g3 {[%clk 0:02:59.5]} 3... d5 {[%clk 0:02:46.5]}
4. cxd5 {[%clk 0:02:58.9]} 4... exd5 {[%clk 0:02:46.4]} 5. d4 {[%clk 0:02:59.2]}
5... Bd6 {[%clk 0:02:45.9]} 6. Bg2 {[%clk 0:02:59.5]} 6... c6 {[%clk 0:02:46.3]}
7. Bg5 {[%clk 0:02:58.6]} 7... O-O {[%clk 0:02:46.4]} 8. e3 {[%clk 0:02:58.8]}
8... Bf5 {[%clk 0:02:44.2]} 9. Nge2 {[%clk 0:02:58.3]} 9... Nbd7 {[%clk
0:02:44.8]} 10. O-O {[%clk 0:02:57.7]} 10... h6 {[%clk 0:02:45.2]} 11. Bf4
{[%clk 0:02:57.2]} 11... Bxf4 {[%clk 0:02:43.7]} 12. Nxf4 {[%clk 0:02:56.7]}
12... Re8 {[%clk 0:02:43.6]} 13. Re1 {[%clk 0:02:55.4]} 13... Ne4 {[%clk
0:02:37.4]} 14. Nfe2 {[%clk 0:02:51.1]} 14... Qe7 {[%clk 0:02:35.9]} 15. Nxe4
{[%clk 0:02:48.3]} 15... Bxe4 {[%clk 0:02:34.1]} 16. Bxe4 {[%clk 0:02:47.2]}
16... dxe4 {[%clk 0:02:29.2]} 17. Nc3 {[%clk 0:02:41.1]} 17... Nf6 {[%clk
0:02:28.6]} 18. Rb1 {[%clk 0:02:37.3]} 18... Nh7 {[%clk 0:02:25.4]} 19. Qg4
{[%clk 0:02:31.3]} 19... Ng5 {[%clk 0:02:24]} 20. Kg2 {[%clk 0:02:27.3]} 20...
g6 {[%clk 0:01:48.5]} 21. h4 {[%clk 0:02:23.1]} 21... f5 {[%clk 0:01:46.5]} 22.
Qf4 {[%clk 0:02:18.4]} 22... Nf3 {[%clk 0:01:42.4]} 23. Red1 {[%clk 0:02:15]}
23... Qf8 {[%clk 0:01:13.6]} 24. d5 {[%clk 0:02:03.8]} 24... Re5 {[%clk
0:00:52.8]} 25. g4 {[%clk 0:01:31.9]} 25... g5 {[%clk 0:00:35.3]} 26. hxg5
{[%clk 0:01:31.6]} 26... hxg5 {[%clk 0:00:36.2]} 27. Qg3 {[%clk 0:01:32]} 27...
f4 {[%clk 0:00:36.3]} 28. Qh3 {[%clk 0:01:31]} 28... fxe3 {[%clk 0:00:29.9]} 29.
fxe3 {[%clk 0:01:30.6]} 29... cxd5 {[%clk 0:00:20]} 30. Nxd5 {[%clk 0:01:01.6]}
30... Rd8 {[%clk 0:00:13.6]} 31. Nc3 {[%clk 0:00:57.1]} 31... Nh4+ {[%clk
0:00:12.5]} 32. Kg1 {[%clk 0:00:55.9]} 32... Rd3 {[%clk 0:00:06]} 33. Rf1 {[%clk
0:00:44.8]} 33... Nf3+ {[%clk 0:00:04.7]} 34. Kg2 {[%clk 0:00:42.5]} 34... Rxe3
{[%clk 0:00:05]} 35. Rf2 {[%clk 0:00:34.6]} 35... Nh4+ {[%clk 0:00:02.6]} 36.
Qxh4 {[%clk 0:00:33.2]} 36... gxh4 {[%clk 0:00:01.6]} 37. Rxf8+ {[%clk
0:00:33.3]} 37... Kxf8 {[%clk 0:00:02.5]} 38. Rf1+ {[%clk 0:00:32.1]} 38... Kg7
{[%clk 0:00:02]} 39. Rf4 {[%clk 0:00:30.6]} 39... Rg3+ {[%clk 0:00:02.6]} 40.
Kh2 {[%clk 0:00:30.1]} 40... e3 {[%clk 0:00:03.5]} 41. Ne2 {[%clk 0:00:28.9]}
41... Kg6 {[%clk 0:00:03.5]} 42. Nxg3 {[%clk 0:00:28.4]} 42... hxg3+ {[%clk
0:00:04.4]} 43. Kxg3 {[%clk 0:00:26.5]} 43... e2 {[%clk 0:00:05.3]} 0-1

[Event "*** Titled Tuesday Blitz"]
[Site "Chess.com"]
[Date "2020.05.19"]
[Round "4"]
[White "diablanni"]
[Black "gross-aleks"]
[Result "0-1"]
[WhiteElo "2326"]
[BlackElo "2566"]
[TimeControl "180+1"]
[EndTime "12:40:37 PDT"]
[Termination "gross-aleks won by checkmate"]

1. e4 {[%clk 0:03:00]} 1... c5 {[%clk 0:02:57.6]} 2. Nf3 {[%clk 0:02:58.2]} 2...
d6 {[%clk 0:02:57.4]} 3. Bb5+ {[%clk 0:02:57.3]} 3... Bd7 {[%clk 0:02:56.9]} 4.
Bxd7+ {[%clk 0:02:56.2]} 4... Qxd7 {[%clk 0:02:57.8]} 5. c4 {[%clk 0:02:54.8]}
5... Nf6 {[%clk 0:02:53.4]} 6. Nc3 {[%clk 0:02:52.4]} 6... e5 {[%clk 0:02:46.1]}
7. d3 {[%clk 0:02:37.7]} 7... Be7 {[%clk 0:02:44]} 8. a3 {[%clk 0:02:31.8]} 8...
Nc6 {[%clk 0:02:37.4]} 9. Rb1 {[%clk 0:02:25.9]} 9... Qg4 {[%clk 0:02:21.3]} 10.
O-O {[%clk 0:02:15.9]} 10... Nh5 {[%clk 0:02:20.3]} 11. h3 {[%clk 0:02:13.9]}
11... Qg6 {[%clk 0:02:19.5]} 12. Nd5 {[%clk 0:02:10.3]} 12... Bd8 {[%clk
0:02:16.6]} 13. b4 {[%clk 0:02:09.8]} 13... O-O {[%clk 0:02:13.8]} 14. bxc5
{[%clk 0:02:08]} 14... dxc5 {[%clk 0:02:12.9]} 15. Rxb7 {[%clk 0:02:07.5]} 15...
f5 {[%clk 0:01:51.7]} 16. Re1 {[%clk 0:02:05.4]} 16... fxe4 {[%clk 0:01:43.4]}
17. Rxe4 {[%clk 0:02:01.4]} 17... Qf5 {[%clk 0:01:20]} 18. Be3 {[%clk 0:01:41]}
18... Nd4 {[%clk 0:01:19.2]} 19. Bxd4 {[%clk 0:01:24.5]} 19... exd4 {[%clk
0:01:19.2]} 20. Qe2 {[%clk 0:00:59.5]} 20... a5 {[%clk 0:01:17]} 21. a4 {[%clk
0:00:50.1]} 21... Nf6 {[%clk 0:01:02.6]} 22. Nxf6+ {[%clk 0:00:26.6]} 22... Bxf6
{[%clk 0:01:01.5]} 23. Qb2 {[%clk 0:00:26.8]} 23... Rae8 {[%clk 0:00:57.5]} 24.
Nd2 {[%clk 0:00:16.8]} 24... Bg5 {[%clk 0:00:52]} 25. Rxe8 {[%clk 0:00:10.4]}
25... Qxf2+ {[%clk 0:00:51.6]} 26. Kh1 {[%clk 0:00:10.8]} 26... Rxe8 {[%clk
0:00:49.8]} 27. Ne4 {[%clk 0:00:09.2]} 27... Qe1+ {[%clk 0:00:34.8]} 28. Kh2
{[%clk 0:00:08.9]} 28... Be3 {[%clk 0:00:34.4]} 29. Qb1 {[%clk 0:00:02.3]} 29...
Bf4+ {[%clk 0:00:30.1]} 30. g3 {[%clk 0:00:02.4]} 30... Qe2+ {[%clk 0:00:19.5]}
31. Kh1 {[%clk 0:00:02.9]} 31... Qf3+ {[%clk 0:00:19.5]} 32. Kh2 {[%clk
0:00:03.4]} 32... Bxg3+ {[%clk 0:00:19.6]} 33. Nxg3 {[%clk 0:00:03.6]} 33...
Qf2+ {[%clk 0:00:19.9]} 34. Kh1 {[%clk 0:00:03.5]} 34... Qxg3 {[%clk 0:00:20.2]}
35. Qb5 {[%clk 0:00:02.6]} 35... Re1# {[%clk 0:00:18.7]} 0-1

[Event "*** Titled Tuesday Blitz"]
[Site "Chess.com"]
[Date "2020.05.19"]
[Round "4"]
[White "econpower"]
[Black "Eltaj_Safarli"]
[Result "0-1"]
[WhiteElo "2649"]
[BlackElo "2998"]
[TimeControl "180+1"]
[EndTime "12:40:38 PDT"]
[Termination "Eltaj_Safarli won by resignation"]

1. c4 {[%clk 0:03:00.9]} 1... Nf6 {[%clk 0:02:57.3]} 2. g3 {[%clk 0:03:00.2]}
2... e6 {[%clk 0:02:56.9]} 3. Bg2 {[%clk 0:03:00.2]} 3... d5 {[%clk 0:02:57.8]}
4. Nf3 {[%clk 0:02:59.4]} 4... Be7 {[%clk 0:02:58.3]} 5. O-O {[%clk 0:02:59.5]}
5... O-O {[%clk 0:02:58.9]} 6. Qc2 {[%clk 0:02:59.5]} 6... c5 {[%clk 0:02:53.5]}
7. d3 {[%clk 0:02:58.5]} 7... Nc6 {[%clk 0:02:53.4]} 8. e4 {[%clk 0:02:58.1]}
8... dxe4 {[%clk 0:02:38]} 9. dxe4 {[%clk 0:02:58]} 9... Nb4 {[%clk 0:02:38.9]}
10. Qe2 {[%clk 0:02:57.5]} 10... Qd3 {[%clk 0:02:38.9]} 11. Qxd3 {[%clk
0:02:57.6]} 11... Nxd3 {[%clk 0:02:39.8]} 12. Nc3 {[%clk 0:02:57.9]} 12... Bd7
{[%clk 0:02:39.4]} 13. Rd1 {[%clk 0:02:57.5]} 13... Nxc1 {[%clk 0:02:27.2]} 14.
e5 {[%clk 0:02:57]} 14... Nxa2 {[%clk 0:01:46.2]} 15. Rxa2 {[%clk 0:02:47.9]}
15... Bc6 {[%clk 0:01:44.3]} 16. exf6 {[%clk 0:02:47.4]} 16... Bxf6 {[%clk
0:01:45.2]} 17. Ne1 {[%clk 0:02:44.5]} 17... Bxg2 {[%clk 0:01:43]} 18. Kxg2
{[%clk 0:02:44.4]} 18... Rfd8 {[%clk 0:01:41.4]} 19. Raa1 {[%clk 0:02:44]} 19...
Rxd1 {[%clk 0:01:39.1]} 20. Rxd1 {[%clk 0:02:43]} 20... Bxc3 {[%clk 0:01:38.4]}
21. bxc3 {[%clk 0:02:42.9]} 21... b6 {[%clk 0:01:37.8]} 22. Rd7 {[%clk
0:02:41.5]} 22... a5 {[%clk 0:01:35.7]} 23. Nc2 {[%clk 0:02:41.8]} 23... g5
{[%clk 0:01:33.5]} 24. Kf3 {[%clk 0:02:39.9]} 24... h6 {[%clk 0:01:31.4]} 25.
Ke3 {[%clk 0:02:39.4]} 25... Kg7 {[%clk 0:01:30]} 26. Na3 {[%clk 0:02:38.7]}
26... Kf6 {[%clk 0:01:26.9]} 27. Ke4 {[%clk 0:02:38.7]} 27... g4 {[%clk
0:01:25.6]} 28. Kf4 {[%clk 0:02:37.9]} 28... h5 {[%clk 0:01:24.8]} 29. Ke4
{[%clk 0:02:35.7]} 29... a4 {[%clk 0:01:23.8]} 30. Ke3 {[%clk 0:02:34.2]} 30...
Kg6 {[%clk 0:01:22.6]} 31. Rb7 {[%clk 0:02:32.8]} 31... Ra6 {[%clk 0:01:21.3]}
32. f4 {[%clk 0:02:29.5]} 32... gxf3 {[%clk 0:01:19.5]} 33. Kxf3 {[%clk
0:02:29.6]} 33... f5 {[%clk 0:01:20.4]} 34. Kf4 {[%clk 0:02:21.6]} 34... Kf6
{[%clk 0:01:20.3]} 35. h4 {[%clk 0:02:21.7]} 35... e5+ {[%clk 0:01:19]} 36. Ke3
{[%clk 0:02:21.6]} 36... Kg6 {[%clk 0:01:19]} 37. Re7 {[%clk 0:02:14.5]} 37...
Kf6 {[%clk 0:01:19.1]} 38. Rb7 {[%clk 0:02:14.6]} 38... Kg6 {[%clk 0:01:19.1]}
39. Rc7 {[%clk 0:02:07.2]} 39... Ra8 {[%clk 0:01:15.8]} 40. Rc6+ {[%clk
0:02:06.6]} 40... Kf7 {[%clk 0:01:15.6]} 41. Rxb6 {[%clk 0:02:07.1]} 41... Rg8
{[%clk 0:01:14.2]} 42. Kf2 {[%clk 0:02:07.5]} 42... Rg4 {[%clk 0:01:12.7]} 43.
Rb5 {[%clk 0:02:06.1]} 43... f4 {[%clk 0:01:11.4]} 44. gxf4 {[%clk 0:01:51.8]}
44... Rxf4+ {[%clk 0:01:12.3]} 45. Kg3 {[%clk 0:01:49.8]} 45... Rg4+ {[%clk
0:01:11.1]} 46. Kf3 {[%clk 0:01:47.6]} 46... Rxh4 {[%clk 0:01:10.2]} 47. Rxc5
{[%clk 0:01:47]} 47... Rh3+ {[%clk 0:01:10.6]} 48. Ke4 {[%clk 0:01:45.8]} 48...
Rxc3 {[%clk 0:01:11.5]} 49. Nb5 {[%clk 0:01:44.8]} 49... Rc1 {[%clk 0:01:11.6]}
50. Kd5 {[%clk 0:01:44.3]} 50... h4 {[%clk 0:01:10.2]} 51. Rc7+ {[%clk
0:01:44.2]} 51... Kg6 {[%clk 0:01:09.5]} 52. Rc8 {[%clk 0:01:37.5]} 52... Kg7
{[%clk 0:01:08.4]} 53. Rc7+ {[%clk 0:01:22]} 53... Kg6 {[%clk 0:01:08.8]} 54.
Rc6+ {[%clk 0:01:22.4]} 54... Kg5 {[%clk 0:01:08.1]} 55. Rc8 {[%clk 0:01:22.6]}
55... h3 {[%clk 0:01:06.2]} 56. Rh8 {[%clk 0:01:18.9]} 56... Kg4 {[%clk
0:01:06.4]} 57. c5 {[%clk 0:01:19.8]} 57... Kg3 {[%clk 0:01:01.7]} 58. Rg8+
{[%clk 0:00:59.2]} 58... Kf4 {[%clk 0:01:00.2]} 59. Rh8 {[%clk 0:00:57.4]} 59...
Kg3 {[%clk 0:00:59.1]} 60. Rg8+ {[%clk 0:00:57.8]} 60... Kf2 {[%clk 0:00:57.6]}
61. Rf8+ {[%clk 0:00:57.9]} 61... Kg2 {[%clk 0:00:54.1]} 62. Rg8+ {[%clk
0:00:58.1]} 62... Kh1 {[%clk 0:00:48.8]} 63. c6 {[%clk 0:00:56.6]} 63... h2
{[%clk 0:00:48.8]} 64. c7 {[%clk 0:00:56.1]} 64... a3 {[%clk 0:00:48.5]} 65.
c8=Q {[%clk 0:00:53]} 65... Rxc8 {[%clk 0:00:49.4]} 66. Rxc8 {[%clk 0:00:53.3]}
66... a2 {[%clk 0:00:49.7]} 67. Ra8 {[%clk 0:00:53]} 67... Kg1 {[%clk
0:00:45.7]} 68. Rxa2 {[%clk 0:00:50.2]} 68... h1=Q+ {[%clk 0:00:44.6]} 69. Kxe5
{[%clk 0:00:51.1]} 69... Qh5+ {[%clk 0:00:44.3]} 0-1